bitfinex/quotes_SOLUSD_20250626
["timestamp","ask_amount","ask_price","bid_price","bid_amount"]
[1750972067485,44.64964886,142.44,142.43,0.02]
[1750972067667,88.20547338,142.44,142.43,0.02]
[1750972069972,62.80698456,142.44,142.43,0.02]
[1750972070199,58.84547338,142.44,142.43,0.02]
[1750972070490,88.20547338,142.44,142.43,0.02]
[1750972073986,69.55582452,142.44,142.43,0.02]
[1750972075771,88.20547338,142.44,142.43,0.02]
[1750972077373,88.20547338,142.44,142.37,0.02]
[1750972077374,167.37613357,142.43,142.37,0.02]
[1750972077577,6.74883996,142.38,142.37,0.02]
[1750972077822,36.10883996,142.38,142.37,0.02]
[1750972078685,43.13229831,142.38,142.37,0.02]
[1750972079470,62.20843188,142.38,142.37,0.02]
[1750972080087,13.77229831,142.38,142.37,0.02]
[1750972080272,62.20843188,142.38,142.37,0.02]
[1750972080684,36.66778149,142.38,142.37,0.02]
[1750972080978,69.13229831,142.38,142.37,0.02]
[1750972081382,62.38345835,142.38,142.37,0.02]
[1750972081582,69.13229831,142.38,142.37,0.02]
[1750972084384,62.38345835,142.38,142.37,0.02]
[1750972084900,36.38345835,142.38,142.37,0.02]
[1750972085495,43.13229831,142.38,142.37,0.02]
[1750972087595,7.02345835,142.38,142.37,0.02]
[1750972087803,36.38345835,142.38,142.37,0.02]
[1750972088000,43.13229831,142.38,142.37,0.02]
[1750972090082,43.13229831,142.38,142.31,0.02]
[1750972090083,26.0,142.35,142.31,0.02]
[1750972090391,6.74883996,142.32,142.31,0.02]
[1750972090596,29.36,142.32,142.31,0.02]
[1750972091300,43.13525929,142.32,142.31,0.02]
[1750972091903,68.53374811,142.32,142.31,0.02]
[1750972092092,68.53374811,142.32,142.22,1.5811]
[1750972092093,0.42648471,142.31,142.23,6.74883996]
[1750972092296,6.74883996,142.28,142.24,6.74883996]
[1750972092494,29.36,142.27,142.24,6.74883996]
[1750972093196,29.36,142.27,142.22,1.5811]
[1750972093197,43.1379421,142.27,142.22,1.5811]
[1750972093393,43.1379421,142.27,142.22,8.32993996]
[1750972093702,36.38910214,142.27,142.23,6.74883996]
[1750972093905,40.2545087,142.32,142.27,6.1904]
[1750972093906,29.36,142.32,142.27,6.1904]
[1750972094088,29.36,142.32,142.3,6.74883996]
[1750972094291,36.10883996,142.32,142.28,6.74883996]
[1750972094877,29.36,142.32,142.28,6.74883996]
[1750972095087,43.13556958,142.32,142.28,6.74883996]
[1750972095609,36.38672962,142.32,142.29,6.74883996]
[1750972095911,36.31843846,142.33,142.31,6.74883996]
[1750972095912,29.36,142.33,142.31,6.74883996]
[1750972096120,29.36,142.34,142.32,6.74883996]
[1750972096411,7.02444506,142.36,142.33,6.74883996]
[1750972096616,29.36,142.38,142.35,6.74883996]
[1750972096918,29.36,142.38,142.37,6.74883996]
[1750972098417,29.36,142.38,142.37,10.16906565]
[1750972098717,36.38328606,142.39,142.37,10.16906565]
[1750972099417,46.55235171,142.39,142.35,10.16906565]
[1750972099589,64.10976444,142.39,142.34,16.35946565]
[1750972099905,64.10976444,142.39,142.35,10.16906565]
[1750972100211,10.16906565,142.38,142.33,10.16906565]
[1750972100391,29.36,142.37,142.32,10.16906565]
[1750972100593,39.52906565,142.37,142.33,10.16906565]
[1750972101308,7.02444506,142.36,142.33,10.16906565]
[1750972102314,29.36,142.35,142.32,10.16906565]
[1750972102694,29.36,142.35,142.33,10.16906565]
[1750972103292,36.3851457,142.35,142.33,10.16906565]
[1750972103595,36.3851457,142.35,142.32,10.16906565]
[1750972104495,10.16906565,142.34,142.29,10.16906565]
[1750972104804,39.52906565,142.33,142.29,10.16906565]
[1750972105324,7.02641933,142.32,142.29,10.16906565]
[1750972105487,7.02641933,142.32,142.28,6.56]
[1750972105488,17.19548498,142.32,142.28,16.72906565]
[1750972105685,39.52906565,142.31,142.26,7.6957]
[1750972105903,39.52906565,142.31,142.27,10.16906565]
[1750972106285,29.36,142.31,142.27,10.16906565]
[1750972106513,29.36,142.31,142.28,10.16906565]
[1750972106907,29.36,142.31,142.29,10.16906565]
[1750972108589,36.38693214,142.31,142.29,10.16906565]
[1750972109093,29.36,142.31,142.3,10.16906565]
[1750972109293,7.0265982,142.32,142.3,10.16906565]
[1750972111087,26.0,142.35,142.3,10.16906565]
[1750972111292,29.36,142.37,142.33,10.16906565]
[1750972111796,29.36,142.37,142.34,10.16906565]
[1750972112413,29.36,142.37,142.29,10.87185572]
[1750972112618,7.02444506,142.36,142.29,10.87185572]
[1750972112998,36.38400175,142.37,142.29,10.87185572]
[1750972114708,46.5530674,142.37,142.29,0.70279007]
[1750972114919,46.5530674,142.37,142.33,10.16906565]
[1750972115122,17.1930674,142.37,142.33,10.16906565]
[1750972115299,46.5530674,142.37,142.33,10.16906565]
[1750972115726,46.5530674,142.37,142.32,10.16906565]
[1750972116103,10.16906565,142.36,142.31,10.16906565]
[1750972116425,10.16906565,142.36,142.28,95.96]
[1750972116426,10.16906565,142.32,142.28,10.16906565]
[1750972116626,39.52906565,142.32,142.27,10.16906565]
[1750972116838,7.02691307,142.31,142.27,10.16906565]
[1750972117209,17.19597872,142.31,142.26,7.6957]
[1750972117404,17.19597872,142.31,142.26,17.86476565]
[1750972119017,17.19597872,142.31,142.27,10.16906565]
[1750972119202,7.02691307,142.31,142.27,10.16906565]
[1750972119399,7.0263009,142.33,142.28,10.16906565]
[1750972119615,7.0263009,142.33,142.26,7.6957]
[1750972119616,36.3863009,142.33,142.26,7.6957]
[1750972119806,36.3863009,142.33,142.3,10.16906565]
[1750972122425,36.3863009,142.33,142.26,7.6957]
[1750972122630,36.3863009,142.33,142.29,10.16906565]
[1750972122807,46.55536655,142.33,142.29,10.16906565]
[1750972123315,10.16906565,142.32,142.27,10.16906565]
[1750972123807,10.16906565,142.3,142.25,0.02]
[1750972124009,39.52906565,142.3,142.26,10.16906565]
[1750972124211,29.36,142.3,142.26,10.16906565]
[1750972125339,7.02790076,142.29,142.26,10.16906565]
[1750972128712,10.16906565,142.28,142.25,0.02]
[1750972128912,29.36,142.27,142.25,0.02]
[1750972129415,7.02938282,142.26,142.25,0.02]
[1750972132717,17.19844847,142.26,142.25,0.02]
[1750972135819,7.02938282,142.26,142.25,0.02]
[1750972136011,17.19844847,142.26,142.25,0.02]
[1750972136329,42.81458204,142.26,142.25,0.02]
[1750972136940,49.42068204,142.26,142.25,0.02]
[1750972137322,197.72068204,142.26,142.25,0.02]
[1750972138428,187.55161639,142.26,142.25,0.02]
[1750972138612,197.72068204,142.26,142.25,0.02]
[1750972139234,49.42068204,142.26,142.25,0.02]
[1750972139613,65.52906565,142.26,142.25,0.02]
[1750972140135,65.81338879,142.26,142.25,0.02]
[1750972140344,84.46303765,142.26,142.25,0.02]
[1750972140510,84.60519922,142.26,142.25,0.02]
[1750972141725,91.63458204,142.26,142.25,0.02]
[1750972142825,81.46551639,142.26,142.25,0.02]
[1750972143026,91.63458204,142.26,142.25,0.02]
[1750972143938,81.46551639,142.26,142.25,0.02]
[1750972144142,91.63458204,142.26,142.25,0.02]
[1750972145239,62.27458204,142.26,142.25,0.02]
[1750972145444,98.17458204,142.26,142.25,0.02]
[1750972145621,62.81586753,142.26,142.25,0.02]
[1750972145819,72.98493318,142.26,142.25,0.02]
[1750972147519,46.55844847,142.26,142.25,0.02]
[1750972148623,36.38938282,142.26,142.25,0.02]
[1750972149967,46.55844847,142.26,142.25,0.02]
[1750972151033,36.38938282,142.26,142.25,0.02]
[1750972151234,46.55844847,142.26,142.25,0.02]
[1750972151540,29.36,142.26,142.25,0.02]
[1750972151742,33.02911526,142.27,142.25,0.02]
[1750972151958,29.36,142.26,142.25,0.02]
[1750972152330,39.52906565,142.26,142.25,0.02]
[1750972152546,33.02911526,142.27,142.25,0.02]
[1750972152752,39.52906565,142.26,142.25,0.02]
[1750972152940,29.36,142.26,142.25,0.02]
[1750972153255,7.02907655,142.27,142.25,0.02]
[1750972153457,36.38907655,142.27,142.25,0.02]
[1750972155164,43.18054979,142.27,142.25,0.02]
[1750972157064,6.79147324,142.26,142.25,0.02]
[1750972157362,13.82085606,142.26,142.25,0.02]
[1750972163266,7.02938282,142.26,142.25,0.02]
[1750972163752,13.82085606,142.26,142.25,0.02]
[1750972164864,14.24734077,142.26,142.25,0.02]
[1750972165370,15.77164077,142.26,142.25,0.02]
[1750972166766,34.42128963,142.26,142.25,0.02]
[1750972174059,8.98016753,142.26,142.25,0.02]
[1750972174274,14.24734077,142.26,142.25,0.02]
[1750972177548,32.89698963,142.26,142.25,0.02]
[1750972179873,7.45586753,142.26,142.25,0.02]
[1750972180083,14.24734077,142.26,142.25,0.02]
[1750972186077,26.0,142.23,142.2,1.5029724]
[1750972186281,6.79147324,142.21,142.2,1.5029724]
[1750972187796,13.82332753,142.21,142.2,1.5029724]
[1750972188688,17.36886618,142.21,142.2,1.5029724]
[1750972195001,10.57739294,142.21,142.2,1.5029724]
[1750972195182,17.36886618,142.21,142.2,1.5029724]
[1750972195800,43.36886618,142.21,142.2,1.5029724]
[1750972198502,17.36886618,142.21,142.2,1.5029724]
[1750972200987,10.57739294,142.21,142.2,1.5029724]
[1750972201191,17.36886618,142.21,142.2,1.5029724]
[1750972201798,10.57739294,142.21,142.2,1.5029724]
[1750972202001,17.36886618,142.21,142.2,1.5029724]
[1750972202403,10.57739294,142.21,142.2,1.5029724]
[1750972202574,17.36886618,142.21,142.2,1.5029724]
[1750972202901,26.0,142.18,142.16,6.79147324]
[1750972203069,29.32,142.18,142.17,6.79147324]
[1750972203276,26.0,142.2,142.17,5.79147324]
[1750972203487,29.32,142.19,142.17,5.79147324]
[1750972203996,29.32,142.19,142.16,6.79147324]
[1750972204383,7.03333802,142.18,142.16,6.79147324]
[1750972204582,29.32,142.17,142.16,6.79147324]
[1750972206305,29.32,142.17,142.15,6.79147324]
[1750972206678,7.03432751,142.16,142.15,6.79147324]
[1750972207277,7.03432751,142.16,142.14,0.02]
[1750972207677,29.32,142.15,142.14,0.02]
[1750972208072,36.11147324,142.15,142.14,0.02]
[1750972209102,43.14629561,142.15,142.14,0.02]
[1750972210382,68.74242918,142.15,142.14,0.02]
[1750972210711,6.79147324,142.07,142.05,8.7277888]
[1750972210891,43.15059064,142.07,142.05,8.7277888]
[1750972211096,13.83059064,142.07,142.05,8.7277888]
[1750972211813,6.79147324,142.06,142.05,7.919]
[1750972211983,13.83059064,142.07,142.05,7.919]
[1750972212178,6.79147324,142.06,142.05,7.919]
[1750972212384,7.0391174,142.07,142.05,7.919]
[1750972212611,36.11147324,142.06,142.05,7.919]
[1750972212817,36.11147324,142.06,141.99,6.0018958]
[1750972212818,36.11147324,142.06,141.99,7.919]
[1750972213023,6.79147324,142.04,141.99,14.71047324]
[1750972213319,29.32,142.04,141.99,14.71047324]
[1750972213627,6.79147324,142.03,141.99,14.71047324]
[1750972213920,36.11147324,142.04,141.99,7.919]
[1750972214086,36.11147324,142.04,142.0,6.79147324]
[1750972214286,6.79147324,142.03,141.99,14.71047324]
[1750972214484,29.32,142.04,141.99,14.71047324]
[1750972214700,36.11147324,142.04,142.0,6.79147324]
[1750972215096,43.15181571,142.04,141.99,7.919]
[1750972215291,6.79147324,142.03,141.99,14.71047324]
[1750972215685,36.36034247,142.04,142.0,6.79147324]
[1750972216017,35.17411185,142.15,142.03,6.79147324]
[1750972216185,35.17411185,142.15,142.0,25.4411221]
[1750972216186,60.73854894,142.12,142.07,6.79147324]
[1750972216382,36.35630734,142.12,142.09,6.79147324]
[1750972217314,36.35630734,142.12,142.1,6.79147324]
[1750972217489,36.35630734,142.12,142.05,0.70397747]
[1750972217490,29.34,142.13,142.11,6.79147324]
[1750972217795,36.37540971,142.14,142.11,6.79147324]
[1750972219130,43.16688295,142.14,142.09,6.0938]
[1750972219411,43.16688295,142.14,142.01,6.53284382]
[1750972219412,24.62728229,142.12,142.01,6.53284382]
[1750972219711,32.79147324,142.09,142.05,6.79147324]
[1750972219883,62.19147324,142.09,142.05,6.79147324]
[1750972220512,62.19147324,142.09,142.04,8.109]
[1750972220816,13.82976152,142.08,142.04,8.109]
[1750972221013,13.82976152,142.08,142.04,14.90047324]
[1750972221314,69.22943758,142.09,142.04,8.109]
[1750972221610,69.22943758,142.09,142.05,6.79147324]
[1750972221812,6.79147324,142.08,142.04,8.109]
[1750972222207,6.79147324,142.08,142.04,14.90047324]
[1750972222390,62.43796434,142.09,142.01,6.6142]
[1750972222596,62.43796434,142.09,142.03,10.21572899]
[1750972222913,80.03244671,142.09,142.01,6.6142]
[1750972223214,10.21572899,142.07,142.03,10.21572899]
[1750972223512,10.21572899,142.06,142.01,6.6142]
[1750972223818,39.61572899,142.07,142.03,10.21572899]
[1750972224202,39.61572899,142.07,142.01,6.6142]
[1750972224203,29.4,142.07,142.01,6.6142]
[1750972224400,29.4,142.07,142.02,10.21572899]
[1750972224628,7.03927917,142.06,142.01,6.6142]
[1750972224807,10.21572899,142.04,142.01,96.0142]
[1750972225337,24.63747711,142.06,141.98,16.73572899]
[1750972225539,24.63747711,142.06,141.99,10.21572899]
[1750972225540,10.21572899,142.03,141.99,10.21572899]
[1750972225838,10.21572899,142.02,141.98,16.73572899]
[1750972226124,10.21572899,142.03,141.99,10.21572899]
[1750972226703,17.25679734,142.03,141.99,10.21572899]
[1750972227122,10.21572899,142.01,141.96,10.21572899]
[1750972227301,10.21572899,142.01,141.94,18.64964886]
[1750972227505,7.04106835,142.03,141.97,10.21572899]
[1750972227724,7.04106835,142.03,141.94,18.64964886]
[1750972227946,10.21572899,142.02,141.95,2.60911469]
[1750972228128,10.21572899,142.02,141.95,0.14216157]
[1750972229116,7.04106835,142.03,142.0,10.21572899]
[1750972229328,62.42040658,142.04,142.01,10.21572899]
[1750972229506,62.42040658,142.04,141.95,0.42648471]
[1750972229507,10.21572899,142.03,141.99,10.21572899]
[1750972229906,72.63613557,142.04,141.99,10.21572899]
[1750972230401,72.63613557,142.04,142.0,10.21572899]
[1750972230701,46.63613557,142.04,142.0,10.21572899]
[1750972230920,36.42040658,142.04,142.0,10.21572899]
[1750972231532,26.0,142.0,141.91,8.0074724]
[1750972231706,10.21572899,141.95,141.92,2.60745349]
[1750972232012,10.21572899,141.96,141.92,10.21572899]
[1750972232208,10.21572899,141.96,141.91,18.22320139]
[1750972232736,17.26013049,141.96,141.92,10.21572899]
[1750972233112,7.0444015,141.96,141.92,10.21572899]
[1750972233317,10.21572899,141.95,141.91,101.11870139]
[1750972234234,17.26013049,141.96,141.91,101.11870139]
[1750972234608,17.26013049,141.96,141.92,10.21572899]
[1750972236216,7.0444015,141.96,141.91,1.5029724]
[1750972236830,7.0444015,141.96,141.92,10.21572899]
[1750972239840,7.0444015,141.96,141.93,10.21572899]
[1750972240130,10.21572899,141.97,141.93,10.21572899]
[1750972240338,17.25956443,141.97,141.93,10.21572899]
[1750972241740,17.25956443,141.97,141.91,1.5029724]
[1750972241918,17.25956443,141.97,141.92,10.21572899]
[1750972242242,10.21572899,141.95,141.91,90.9029724]
[1750972242737,1.6403,141.96,141.91,90.9029724]
[1750972242985,10.21572899,141.93,141.91,1.5029724]
[1750972243129,10.21572899,141.92,141.91,1.5029724]
[1750972244123,17.26195221,141.92,141.91,1.5029724]
[1750972244441,7.04622322,141.92,141.91,1.5029724]
[1750972244615,13.87403183,141.92,141.91,1.5029724]
[1750972244824,7.04622322,141.92,141.91,1.5029724]
[1750972245148,13.87403183,141.92,141.91,1.5029724]
[1750972246340,32.82780861,141.92,141.91,1.5029724]
[1750972248451,26.0,141.92,141.91,1.5029724]
[1750972248625,36.58577395,141.93,141.91,1.5029724]
[1750972248944,62.56535442,141.94,141.91,1.5029724]
[1750972249143,43.39316303,141.94,141.91,1.5029724]
[1750972249847,29.52,141.94,141.91,8.33078101]
[1750972250018,36.56532048,141.94,141.91,8.33078101]
[1750972250219,29.52,141.94,141.91,11.73649627]
[1750972251117,33.04490843,141.95,141.92,10.23352387]
[1750972253253,36.56456436,141.96,141.92,10.23352387]
[1750972253425,29.52,141.96,141.93,10.23352387]
[1750972253752,17.27762381,141.97,141.93,10.23352387]
[1750972254139,7.04409994,141.97,141.93,10.23352387]
[1750972254335,7.04409994,141.97,141.94,10.23352387]
[1750972254739,46.81696202,141.98,141.91,90.9029724]
[1750972254964,36.58343815,141.98,141.94,10.23352387]
[1750972255163,36.58343815,141.98,141.94,99.63352387]
[1750972256552,33.04343815,141.98,141.94,99.63352387]
[1750972256751,33.04343815,141.98,141.95,10.23352387]
[1750972257052,62.56237101,142.0,141.97,10.23352387]
[1750972257253,62.56237101,142.0,141.93,89.4]
[1750972257432,10.23352387,141.98,141.94,10.23352387]
[1750972257844,10.23352387,141.98,141.93,89.4]
[1750972258039,10.23352387,141.97,141.93,89.4]
[1750972258254,10.23352387,141.97,141.92,10.23352387]
[1750972258458,10.23352387,141.97,141.93,10.23352387]
[1750972258655,7.04423781,141.96,141.92,10.23352387]
[1750972258857,7.04423781,141.96,141.95,10.23352387]
[1750972259261,7.04423781,141.96,141.91,90.9029724]
[1750972259440,7.04423781,141.96,141.93,10.23352387]
[1750972259942,10.23352387,141.95,141.91,90.9029724]
[1750972260142,10.23352387,141.94,141.91,1.5029724]
[1750972260363,10.23352387,141.95,141.91,1.5029724]
[1750972260560,10.23352387,141.94,141.91,1.5029724]
[1750972260732,39.83352387,141.93,141.91,1.5029724]
[1750972261444,29.6,141.93,141.91,1.5029724]
[1750972261860,39.83352387,141.93,141.91,1.5029724]
[1750972263053,36.64590259,141.93,141.91,11.73649627]
[1750972264069,1.6379,141.97,141.91,1.5029724]
[1750972264248,38.28180454,141.97,141.94,10.23352387]
[1750972264763,8.68180454,141.97,141.94,10.23352387]
[1750972264958,38.28180454,141.97,141.93,10.23352387]
[1750972265169,8.68180454,141.97,141.93,10.23352387]
[1750972265353,48.51532841,141.97,141.93,10.23352387]
[1750972265559,38.28180454,141.97,141.94,10.23352387]
[1750972265759,38.28180454,141.97,141.93,10.23352387]
[1750972266476,38.26180454,141.97,141.93,10.23352387]
[1750972266769,48.49532841,141.97,141.93,10.23352387]
[1750972268566,48.49532841,141.97,141.93,99.63352387]
[1750972269348,38.26180454,141.97,141.93,99.63352387]
[1750972270571,36.62390454,141.97,141.93,99.63352387]
[1750972270772,36.62390454,141.97,141.94,10.23352387]
[1750972271143,46.85742841,141.97,141.93,99.63352387]
[1750972271548,10.23352387,141.94,141.93,89.4]
[1750972271776,29.54,141.95,141.91,90.9029724]
[1750972271956,10.23352387,141.93,141.91,90.9029724]
[1750972272163,39.79352387,141.93,141.91,1.5029724]
[1750972272369,36.38534318,141.93,141.91,1.5029724]
[1750972272570,7.04622322,141.92,141.91,1.5029724]
[1750972272880,13.8715664,141.92,141.91,1.5029724]
[1750972273089,7.04622322,141.92,141.91,1.5029724]
[1750972273246,13.8715664,141.92,141.91,1.5029724]
[1750972274345,17.2850407,141.92,141.91,1.5029724]
[1750972274540,7.04622322,141.92,141.91,1.5029724]
[1750972275474,17.2850407,141.92,141.91,1.5029724]
[1750972276061,7.04622322,141.92,141.91,1.5029724]
[1750972276283,17.2850407,141.92,141.91,1.5029724]
[1750972276745,7.04622322,141.92,141.91,1.5029724]
[1750972276945,17.2850407,141.92,141.91,1.5029724]
[1750972280352,71.66141488,141.92,141.86,0.02]
[1750972280555,10.23881748,141.87,141.86,0.02]
[1750972280776,46.92752404,141.87,141.86,0.02]
[1750972281075,48.45722404,141.87,141.86,0.02]
[1750972281860,48.45722404,141.87,141.86,2.1629483]
[1750972282173,64.21840656,141.87,141.86,2.1629483]
[1750972282586,74.45722404,141.87,141.86,2.1629483]
[1750972283790,74.61722404,141.87,141.86,2.1629483]
[1750972283971,64.37840656,141.87,141.86,2.1629483]
[1750972284276,74.61722404,141.87,141.86,2.1629483]
[1750972284477,44.81722404,141.87,141.86,2.1629483]
[1750972284684,74.61722404,141.87,141.86,2.1629483]
[1750972285980,48.61722404,141.87,141.86,2.1629483]
[1750972288692,48.57722404,141.87,141.86,2.1629483]
[1750972288856,7.04870656,141.87,141.86,2.1629483]
[1750972289057,29.76,141.87,141.86,12.40176578]
[1750972290365,7.04622322,141.92,141.86,12.40176578]
[1750972290562,29.78,141.91,141.89,10.23881748]
[1750972290973,7.04721634,141.9,141.86,2.1629483]
[1750972291158,7.04622322,141.92,141.86,2.1629483]
[1750972291363,29.76,141.91,141.86,2.1629483]
[1750972292993,36.80721469,141.91,141.86,2.1629483]
[1750972293490,29.76,141.91,141.9,10.23881748]
[1750972294863,29.74,141.93,141.9,10.23881748]
[1750972295959,29.7,141.93,141.9,10.23881748]
[1750972296410,7.04423781,141.96,141.87,8.60077065]
[1750972296563,29.7,141.96,141.94,10.23881748]
[1750972296759,0.04,141.98,141.95,10.23881748]
[1750972297066,0.04,141.98,141.97,10.23881748]
[1750972299395,0.04,141.98,141.94,1.30936863]
[1750972299595,0.04,141.98,141.97,10.23881748]
[1750972300280,0.04,141.98,141.94,1.30936863]
[1750972300471,0.04,141.98,141.97,10.23881748]
[1750972303910,0.04,141.98,141.97,28.88846634]
[1750972304108,0.04,141.98,141.97,18.64964886]
[1750972304307,0.04,141.98,141.97,28.88846634]
[1750972305006,0.04,141.98,141.97,10.23881748]
[1750972307403,0.04,141.98,141.94,0.6048456]
[1750972307701,26.0,141.97,141.94,0.6048456]
[1750972307904,0.04,141.98,141.94,10.84366308]
[1750972308102,10.27881748,141.98,141.94,10.84366308]
[1750972308283,10.27881748,141.98,141.94,0.6048456]
[1750972308783,10.23881748,141.95,141.94,0.6048456]
[1750972309301,47.40355154,141.95,141.94,0.6048456]
[1750972311511,37.16473406,141.95,141.94,0.6048456]
[1750972311698,47.40355154,141.95,141.94,0.6048456]
[1750972314699,37.16473406,141.95,141.94,0.6048456]
[1750972315012,30.12,141.95,141.94,0.6048456]
[1750972315194,7.04431004,141.96,141.94,0.6048456]
[1750972319414,17.28312752,141.96,141.94,0.6048456]
[1750972321713,7.04431004,141.96,141.94,90.0048456]
[1750972325915,10.23881748,141.95,141.94,90.0048456]
[1750972326299,7.04431004,141.96,141.94,0.6048456]
[1750972326500,17.28355154,141.95,141.94,0.6048456]
[1750972326815,0.42648471,141.94,141.91,1.5381027]
[1750972327016,10.23881748,141.92,141.91,1.5381027]
[1750972327218,10.23881748,141.89,141.88,0.02]
[1750972327413,40.35881748,141.89,141.88,0.02]
[1750972327613,40.64314062,141.89,141.88,0.02]
[1750972327938,47.11420219,141.89,141.88,0.02]
[1750972328100,36.87538471,141.89,141.88,0.02]
[1750972328295,47.11420219,141.89,141.88,0.02]
[1750972328521,54.1619152,141.89,141.88,0.02]
[1750972328909,43.78093615,141.89,141.88,0.02]
[1750972329217,47.50653049,141.89,141.88,0.02]
[1750972329426,37.26771301,141.89,141.88,0.02]
[1750972329635,47.50653049,141.89,141.88,0.02]
[1750972330307,37.26771301,141.89,141.88,0.02]
[1750972330531,47.50653049,141.89,141.88,0.02]
[1750972330723,47.79085363,141.89,141.88,0.02]
[1750972331241,66.58266406,141.89,141.88,0.02]
[1750972331403,68.20056406,141.89,141.88,0.02]
[1750972331603,26.28432314,141.87,141.86,0.02]
[1750972331923,26.28432314,141.87,141.75,10.23881748]
[1750972331924,26.0,141.83,141.75,10.23881748]
[1750972332127,30.8,141.82,141.75,10.23881748]
[1750972332305,30.8,141.82,141.74,0.14216157]
[1750972332500,30.8,141.82,141.79,10.23881748]
[1750972332696,30.8,141.82,141.74,0.42648471]
[1750972332923,48.09006495,141.82,141.78,10.23881748]
[1750972333122,48.09006495,141.82,141.77,10.23881748]
[1750972333630,48.09006495,141.82,141.75,10.23881748]
[1750972333631,10.23881748,141.8,141.75,10.23881748]
[1750972333831,30.84,141.79,141.76,10.23881748]
[1750972334002,30.84,141.79,141.73,18.64964886]
[1750972334203,30.84,141.79,141.75,10.23881748]
[1750972334405,30.84,141.79,141.73,89.4]
[1750972334636,30.84,141.79,141.7,153.5049]
[1750972334637,10.23881748,141.77,141.7,6.3049]
[1750972334804,31.22,141.76,141.73,10.23881748]
[1750972335000,31.22,141.76,141.7,6.3049]
[1750972335320,31.22,141.76,141.69,1.5243]
[1750972335531,31.22,141.76,141.65,89.4]
[1750972335816,31.22,141.76,141.64,7.46]
[1750972335817,10.23881748,141.75,141.66,10.23881748]
[1750972336000,31.22,141.76,141.64,7.46]
[1750972336204,10.23881748,141.75,141.64,7.46]
[1750972336438,31.22,141.76,141.67,10.23881748]
[1750972336604,7.05467372,141.75,141.64,7.46]
[1750972336817,10.23881748,141.71,141.64,7.46]
[1750972337015,41.97881748,141.7,141.62,1.5381027]
[1750972337353,31.74,141.7,141.65,10.23881748]
[1750972337649,31.74,141.7,141.66,10.23881748]
[1750972338022,31.74,141.7,141.62,1.5381027]
[1750972338221,31.74,141.7,141.63,18.64964886]
[1750972338442,36.23881748,141.74,141.69,10.23881748]
[1750972338617,1.6179,141.77,141.66,6.94071557]
[1750972338618,31.78,141.73,141.66,6.94071557]
[1750972338948,31.78,141.74,141.7,10.23881748]
[1750972339241,42.01881748,141.74,141.66,6.94071557]
[1750972339419,31.78,141.74,141.65,90.9243]
[1750972339619,26.0,141.73,141.65,10.23881748]
[1750972339923,10.23881748,141.71,141.66,10.23881748]
[1750972340128,26.0,141.73,141.67,10.23881748]
[1750972340129,31.92,141.7,141.67,10.23881748]
[1750972340322,31.92,141.7,141.64,18.79181043]
[1750972340568,31.92,141.7,141.68,10.23881748]
[1750972340940,31.92,141.7,141.65,90.1059654]
[1750972341250,32.1,141.73,141.69,10.23881748]
[1750972341453,32.1,141.73,141.66,10.23881748]
[1750972341621,32.1,141.73,141.67,0.70586574]
[1750972341945,32.1,141.73,141.71,10.23881748]
[1750972342142,32.1,141.73,141.67,90.10586574]
[1750972342447,32.1,141.73,141.65,0.7059654]
[1750972342617,17.29530416,141.72,141.68,10.23881748]
[1750972342823,49.39461195,141.73,141.69,10.23881748]
[1750972343344,49.39461195,141.73,141.68,10.23881748]
[1750972343527,49.39461195,141.73,141.69,10.23881748]
[1750972343842,32.1,141.73,141.7,10.23881748]
[1750972344047,26.0,141.76,141.72,10.23881748]
[1750972344048,58.16,141.76,141.72,10.23881748]
[1750972344251,32.16,141.76,141.73,10.23881748]
[1750972344460,23.31792375,141.78,141.74,10.23881748]
[1750972344620,59.92319203,141.85,141.75,10.23881748]
[1750972344823,10.23881748,141.8,141.76,10.23881748]
[1750972345144,32.16,141.79,141.75,10.23881748]
[1750972345321,42.39881748,141.79,141.75,10.23881748]
[1750972345656,32.16,141.79,141.75,10.23881748]
[1750972346146,39.21296015,141.79,141.75,10.23881748]
[1750972346326,39.21296015,141.79,141.74,10.23881748]
[1750972347226,39.21296015,141.79,141.7,0.14216157]
[1750972347428,49.45177763,141.79,141.75,10.23881748]
[1750972347947,49.45177763,141.79,141.74,10.23881748]
[1750972348152,39.21296015,141.79,141.75,10.23881748]